[Event "*** Titled Tuesday Blitz"]
[Site "Chess.com"]
[Date "2018.12.04"]
[Round "4"]
[White "VladimirBelous"]
[Black "Hikaru"]
[Result "1-0"]
[WhiteElo "2761"]
[BlackElo "3028"]
[TimeControl "180+2"]
[EndTime "13:54:15 PST"]
[Termination "VladimirBelous won by checkmate"]

1. Nf3 {[%clk 0:03:01.9]} 1... d5 {[%clk 0:03:00.8]} 2. c4 {[%clk 0:03:02.8]}
2... d4 {[%clk 0:03:01.5]} 3. g3 {[%clk 0:03:03.3]} 3... c5 {[%clk 0:02:59.2]}
4. Bg2 {[%clk 0:03:04.9]} 4... Nc6 {[%clk 0:03:00.5]} 5. O-O {[%clk 0:03:06.8]}
5... e5 {[%clk 0:03:01.2]} 6. e3 {[%clk 0:03:08.4]} 6... Nf6 {[%clk 0:02:49.3]}
7. exd4 {[%clk 0:03:09]} 7... exd4 {[%clk 0:02:50.4]} 8. Re1+ {[%clk 0:03:09.5]}
8... Be7 {[%clk 0:02:51.3]} 9. d3 {[%clk 0:03:10.9]} 9... O-O {[%clk 0:02:52.1]}
10. Bg5 {[%clk 0:03:12.5]} 10... h6 {[%clk 0:02:52.1]} 11. Bxf6 {[%clk
0:03:13.4]} 11... Bxf6 {[%clk 0:02:54]} 12. Nbd2 {[%clk 0:03:14.8]} 12... Bf5
{[%clk 0:02:55.5]} 13. Ne4 {[%clk 0:03:14.3]} 13... Be7 {[%clk 0:02:56.9]} 14.
a3 {[%clk 0:03:15.7]} 14... Qd7 {[%clk 0:02:53.3]} 15. Qa4 {[%clk 0:03:09.2]}
15... Rfe8 {[%clk 0:02:47.2]} 16. Rab1 {[%clk 0:03:02.6]} 16... Bf8 {[%clk
0:02:18.6]} 17. Nh4 {[%clk 0:02:50]} 17... Bh3 {[%clk 0:02:16.4]} 18. Bxh3
{[%clk 0:02:37.1]} 18... Qxh3 {[%clk 0:02:17.1]} 19. Qb5 {[%clk 0:02:38.4]}
19... Ne5 {[%clk 0:02:09.7]} 20. f4 {[%clk 0:02:12.3]} 20... a6 {[%clk
0:02:01.5]} 21. Qxb7 {[%clk 0:02:05.8]} 21... Nxd3 {[%clk 0:02:01.3]} 22. Re2
{[%clk 0:01:59.3]} 22... Nxf4 {[%clk 0:01:58.3]} 23. Rf2 {[%clk 0:02:00.6]}
23... Rab8 {[%clk 0:01:56]} 24. Qc7 {[%clk 0:01:56.9]} 24... Rxe4 {[%clk
0:01:12.1]} 25. Qxb8 {[%clk 0:01:56.1]} 25... Ne2+ {[%clk 0:01:12.7]} 26. Kh1
{[%clk 0:01:57.4]} 26... d3 {[%clk 0:01:07.2]} 27. Rbf1 {[%clk 0:01:48.7]} 27...
d2 {[%clk 0:00:44.2]} 28. Rxf7 {[%clk 0:01:45.6]} 28... Nxg3+ {[%clk 0:00:45.1]}
29. Qxg3 {[%clk 0:01:44.1]} 29... Qxg3 {[%clk 0:00:44.9]} 30. Rxf8+ {[%clk
0:01:35.2]} 30... Kh7 {[%clk 0:00:45.1]} 31. hxg3 {[%clk 0:01:36.6]} 31... Re1
{[%clk 0:00:46.7]} 32. Ng2 {[%clk 0:01:37.9]} 32... d1=Q {[%clk 0:00:46.5]} 33.
Rxe1 {[%clk 0:01:39]} 33... Qd4 {[%clk 0:00:45.3]} 34. Nf4 {[%clk 0:01:26.9]}
34... Qxc4 {[%clk 0:00:42.6]} 35. Ree8 {[%clk 0:01:22.1]} 35... Qf1+ {[%clk
0:00:35.6]} 36. Kh2 {[%clk 0:01:21.9]} 36... Qf2+ {[%clk 0:00:37.5]} 37. Kh3
{[%clk 0:01:12.1]} 37... Qf1+ {[%clk 0:00:38.6]} 38. Kh2 {[%clk 0:01:01.1]}
38... Qf2+ {[%clk 0:00:39.7]} 39. Ng2 {[%clk 0:01:02.7]} 39... Qxb2 {[%clk
0:00:40.9]} 40. Kh3 {[%clk 0:01:04.3]} 40... Qa1 {[%clk 0:00:37.6]} 41. Nf4
{[%clk 0:01:05.2]} 41... Qf1+ {[%clk 0:00:38.3]} 42. Kg4 {[%clk 0:01:06.2]}
42... Qd1+ {[%clk 0:00:39.1]} 43. Kf5 {[%clk 0:01:07.6]} 43... Qd7+ {[%clk
0:00:40.3]} 44. Ke5 {[%clk 0:01:08.4]} 44... Qc7+ {[%clk 0:00:38.8]} 45. Kd5
{[%clk 0:01:09.1]} 45... Qd7+ {[%clk 0:00:39.3]} 46. Kxc5 {[%clk 0:01:06.7]}
46... Qc7+ {[%clk 0:00:40.8]} 47. Kd5 {[%clk 0:01:08.3]} 47... Qd7+ {[%clk
0:00:42]} 48. Ke4 {[%clk 0:01:09.7]} 48... Qc6+ {[%clk 0:00:42.6]} 49. Kf5
{[%clk 0:01:11.1]} 49... Qd7+ {[%clk 0:00:43.6]} 50. Ke5 {[%clk 0:01:12.2]}
50... Qc7+ {[%clk 0:00:44.6]} 51. Ke4 {[%clk 0:01:13.8]} 51... Qc6+ {[%clk
0:00:45.6]} 52. Ke3 {[%clk 0:01:15.2]} 52... Qc3+ {[%clk 0:00:45.5]} 53. Kf2
{[%clk 0:01:16.6]} 53... Qc2+ {[%clk 0:00:44.1]} 54. Kf3 {[%clk 0:01:18.1]}
54... Qc6+ {[%clk 0:00:45.7]} 55. Kg4 {[%clk 0:01:18.3]} 55... Qd7+ {[%clk
0:00:47]} 56. Ne6 {[%clk 0:01:13]} 56... Qd1+ {[%clk 0:00:41.5]} 57. Kf5 {[%clk
0:01:08]} 57... Qd5+ {[%clk 0:00:42.8]} 58. Kf4 {[%clk 0:01:09.5]} 58... Qc4+
{[%clk 0:00:44.4]} 59. Ke5 {[%clk 0:01:10.9]} 59... Qc3+ {[%clk 0:00:45.4]} 60.
Kd5 {[%clk 0:01:12]} 60... Qb3+ {[%clk 0:00:46.2]} 61. Kc6 {[%clk 0:01:12.9]}
61... Qc3+ {[%clk 0:00:46]} 62. Kb7 {[%clk 0:01:13.5]} 62... Qb3+ {[%clk
0:00:46.8]} 63. Ka7 {[%clk 0:01:14.6]} 63... Qe3+ {[%clk 0:00:47.6]} 64. Kb7
{[%clk 0:01:14]} 64... Qb3+ {[%clk 0:00:48.1]} 65. Kc8 {[%clk 0:01:14.7]} 65...
Qc3+ {[%clk 0:00:48.4]} 66. Nc7 {[%clk 0:01:15.9]} 66... Qxg3 {[%clk 0:00:47.9]}
67. a4 {[%clk 0:01:14.2]} 67... h5 {[%clk 0:00:49.2]} 68. Rh8+ {[%clk
0:01:13.4]} 68... Kg6 {[%clk 0:00:50.4]} 69. Re6+ {[%clk 0:01:15.3]} 69... Kg5
{[%clk 0:00:51.9]} 70. Rxa6 {[%clk 0:01:16.7]} 70... Qg4+ {[%clk 0:00:51.6]} 71.
Kb7 {[%clk 0:01:14.6]} 71... Qb4+ {[%clk 0:00:52.6]} 72. Rb6 {[%clk 0:01:14.8]}
72... Qe4+ {[%clk 0:00:53.5]} 73. Kb8 {[%clk 0:01:14.3]} 73... Qxa4 {[%clk
0:00:54.6]} 74. Rb5+ {[%clk 0:01:15.8]} 74... Kg4 {[%clk 0:00:55.5]} 75. Rhxh5
{[%clk 0:01:16.5]} 75... Qf4 {[%clk 0:00:56.1]} 76. Kb7 {[%clk 0:01:16.4]} 76...
g5 {[%clk 0:00:56.8]} 77. Rh6 {[%clk 0:01:10.7]} 77... Qe4+ {[%clk 0:00:56.5]}
78. Rc6 {[%clk 0:01:12.2]} 78... Kh4 {[%clk 0:00:56]} 79. Nd5 {[%clk 0:00:55.9]}
79... g4 {[%clk 0:00:57.1]} 80. Kb6 {[%clk 0:00:57.3]} 80... Qd4+ {[%clk
0:00:56]} 81. Rcc5 {[%clk 0:00:57.7]} 81... Qh8 {[%clk 0:00:50.7]} 82. Rb4
{[%clk 0:00:57.5]} 82... Qb8+ {[%clk 0:00:48.8]} 83. Ka5 {[%clk 0:00:57.9]}
83... Qd6 {[%clk 0:00:48.7]} 84. Rcb5 {[%clk 0:00:53.8]} 84... Kh3 {[%clk
0:00:49.9]} 85. Nf4+ {[%clk 0:00:54]} 85... Kg3 {[%clk 0:00:51.2]} 86. Rd5
{[%clk 0:00:52.2]} 86... Qc7+ {[%clk 0:00:48.9]} 87. Kb5 {[%clk 0:00:50.8]}
87... Qb8+ {[%clk 0:00:49.8]} 88. Ka4 {[%clk 0:00:50.2]} 88... Qe8+ {[%clk
0:00:48.8]} 89. Kb3 {[%clk 0:00:49.5]} 89... Qf7 {[%clk 0:00:50]} 90. Kc2 {[%clk
0:00:48.7]} 90... Kh2 {[%clk 0:00:48]} 91. Rd2+ {[%clk 0:00:48.6]} 91... Kg3
{[%clk 0:00:47.7]} 92. Rd3+ {[%clk 0:00:49.9]} 92... Kh2 {[%clk 0:00:45.3]} 93.
Ne2 {[%clk 0:00:51]} 93... Qa2+ {[%clk 0:00:40.5]} 94. Kd1 {[%clk 0:00:52]}
94... Qa1+ {[%clk 0:00:42.1]} 95. Kd2 {[%clk 0:00:52.7]} 95... Qa5 {[%clk
0:00:43.7]} 96. Rb3 {[%clk 0:00:50]} 96... Qd5+ {[%clk 0:00:44.5]} 97. Ke1
{[%clk 0:00:49.2]} 97... Qa5 {[%clk 0:00:37.3]} 98. Kf2 {[%clk 0:00:42.1]} 98...
Qc5+ {[%clk 0:00:38.4]} 99. Kf1 {[%clk 0:00:39.4]} 99... Qf5+ {[%clk 0:00:28.2]}
100. Rf4 {[%clk 0:00:39.9]} 100... Qd5 {[%clk 0:00:29.6]} 101. Rf2+ {[%clk
0:00:37.8]} 101... Kh1 {[%clk 0:00:29.5]} 102. Rh3+ {[%clk 0:00:39.1]} 102...
gxh3 {[%clk 0:00:30.3]} 103. Ng3# {[%clk 0:00:41]} 1-0

[Event "*** Titled Tuesday Blitz"]
[Site "Chess.com"]
[Date "2018.12.04"]
[Round "4"]
[White "ChristopherYoo"]
[Black "ckgchess"]
[Result "1/2-1/2"]
[WhiteElo "2423"]
[BlackElo "2582"]
[TimeControl "180+2"]
[EndTime "13:54:38 PST"]
[Termination "Game drawn by 50-move rule"]

1. e4 {[%clk 0:03:01.9]} 1... c5 {[%clk 0:02:42.8]} 2. Nf3 {[%clk 0:03:01.6]}
2... d6 {[%clk 0:02:43.1]} 3. d4 {[%clk 0:03:02]} 3... cxd4 {[%clk 0:02:45]} 4.
Nxd4 {[%clk 0:03:03.2]} 4... Nf6 {[%clk 0:02:46.9]} 5. Nc3 {[%clk 0:03:04.4]}
5... a6 {[%clk 0:02:48.2]} 6. Nb3 {[%clk 0:03:05.7]} 6... Nc6 {[%clk 0:02:48.9]}
7. Be2 {[%clk 0:03:04.9]} 7... g6 {[%clk 0:02:48.9]} 8. Be3 {[%clk 0:03:05.8]}
8... Bg7 {[%clk 0:02:50.2]} 9. Nd5 {[%clk 0:03:04.6]} 9... Nxd5 {[%clk
0:02:43.4]} 10. exd5 {[%clk 0:03:04.8]} 10... Ne5 {[%clk 0:02:44.1]} 11. O-O
{[%clk 0:03:02.5]} 11... O-O {[%clk 0:02:43.2]} 12. Qd2 {[%clk 0:02:57.1]} 12...
b5 {[%clk 0:02:38.4]} 13. Na5 {[%clk 0:02:35.9]} 13... Qc7 {[%clk 0:02:24.5]}
14. Bd4 {[%clk 0:02:06]} 14... Bb7 {[%clk 0:02:10.9]} 15. f4 {[%clk 0:01:46.8]}
15... Nd7 {[%clk 0:01:56.2]} 16. Bxg7 {[%clk 0:01:44.2]} 16... Kxg7 {[%clk
0:01:58.1]} 17. Bf3 {[%clk 0:01:36.7]} 17... Rac8 {[%clk 0:01:56.8]} 18. Rac1
{[%clk 0:01:35.5]} 18... Ba8 {[%clk 0:01:54.4]} 19. Kh1 {[%clk 0:01:33.6]} 19...
Nf6 {[%clk 0:01:55.6]} 20. c4 {[%clk 0:01:03.7]} 20... bxc4 {[%clk 0:01:52.8]}
21. Rxc4 {[%clk 0:01:04.5]} 21... Qb6 {[%clk 0:01:51.8]} 22. Rfc1 {[%clk
0:00:56.6]} 22... Rxc4 {[%clk 0:01:46.1]} 23. Nxc4 {[%clk 0:00:56.7]} 23... Qb5
{[%clk 0:01:47]} 24. Ne3 {[%clk 0:00:54.9]} 24... Rb8 {[%clk 0:01:46]} 25. b3
{[%clk 0:00:54.9]} 25... Qb4 {[%clk 0:01:45.3]} 26. Qxb4 {[%clk 0:00:49.9]}
26... Rxb4 {[%clk 0:01:47.2]} 27. Rc7 {[%clk 0:00:30.8]} 27... Rxf4 {[%clk
0:01:39.9]} 28. Rxe7 {[%clk 0:00:31.7]} 28... Nxd5 {[%clk 0:01:34.9]} 29. Bxd5
{[%clk 0:00:27.4]} 29... Bxd5 {[%clk 0:01:34.8]} 30. Kg1 {[%clk 0:00:23.2]}
30... Be6 {[%clk 0:01:31]} 31. Ra7 {[%clk 0:00:22.6]} 31... d5 {[%clk 0:01:30]}
32. Rxa6 {[%clk 0:00:23.2]} 32... d4 {[%clk 0:01:31.3]} 33. Nd1 {[%clk
0:00:16.2]} 33... Kf6 {[%clk 0:01:26.8]} 34. Nf2 {[%clk 0:00:15.1]} 34... Ke7
{[%clk 0:01:22.1]} 35. Nd3 {[%clk 0:00:12.3]} 35... Re4 {[%clk 0:01:20.3]} 36.
Kf2 {[%clk 0:00:12.4]} 36... Re3 {[%clk 0:01:20.8]} 37. Nf4 {[%clk 0:00:12.4]}
37... Rc3 {[%clk 0:01:21.5]} 38. Ke2 {[%clk 0:00:08.7]} 38... g5 {[%clk
0:01:18.5]} 39. Nd3 {[%clk 0:00:03.9]} 39... Rc2+ {[%clk 0:01:13.3]} 40. Kf1
{[%clk 0:00:02.8]} 40... Bf5 {[%clk 0:01:10.9]} 41. Nb4 {[%clk 0:00:03.8]} 41...
Rb2 {[%clk 0:00:38.7]} 42. Nc6+ {[%clk 0:00:04.7]} 42... Kf8 {[%clk 0:00:38.6]}
43. Ra8+ {[%clk 0:00:04.6]} 43... Kg7 {[%clk 0:00:38.6]} 44. Nxd4 {[%clk
0:00:05.9]} 44... Be4 {[%clk 0:00:38.9]} 45. Ra5 {[%clk 0:00:06.2]} 45... Bxg2+
{[%clk 0:00:39.5]} 46. Ke1 {[%clk 0:00:03.1]} 46... h6 {[%clk 0:00:41.4]} 47.
Nf5+ {[%clk 0:00:03.3]} 47... Kg6 {[%clk 0:00:42.5]} 48. Ne7+ {[%clk 0:00:03.8]}
48... Kh5 {[%clk 0:00:42.8]} 49. Nf5 {[%clk 0:00:03.8]} 49... Kg4 {[%clk
0:00:32.1]} 50. Nxh6+ {[%clk 0:00:04.1]} 50... Kf4 {[%clk 0:00:33.6]} 51. Nxf7
{[%clk 0:00:03.8]} 51... Ke3 {[%clk 0:00:33]} 52. Re5+ {[%clk 0:00:03.2]} 52...
Be4 {[%clk 0:00:34.4]} 53. Rxe4+ {[%clk 0:00:03.5]} 53... Kxe4 {[%clk
0:00:36.3]} 54. Nxg5+ {[%clk 0:00:03.9]} 54... Ke3 {[%clk 0:00:37.8]} 55. Kf1
{[%clk 0:00:04.4]} 55... Rxa2 {[%clk 0:00:38]} 56. Nh3 {[%clk 0:00:05]} 56...
Rxh2 {[%clk 0:00:38.5]} 57. Ng1 {[%clk 0:00:06.2]} 57... Rb2 {[%clk 0:00:39.5]}
58. Nh3 {[%clk 0:00:06.6]} 58... Rxb3 {[%clk 0:00:39]} 59. Kg2 {[%clk
0:00:07.4]} 59... Rb8 {[%clk 0:00:40.7]} 60. Ng1 {[%clk 0:00:05.9]} 60... Rg8+
{[%clk 0:00:41.6]} 61. Kf1 {[%clk 0:00:07.3]} 61... Rg7 {[%clk 0:00:42.3]} 62.
Nh3 {[%clk 0:00:08.2]} 62... Rg6 {[%clk 0:00:38.1]} 63. Ng1 {[%clk 0:00:09]}
63... Rg3 {[%clk 0:00:39.8]} 64. Ne2 {[%clk 0:00:07.7]} 64... Rf3+ {[%clk
0:00:41.4]} 65. Ke1 {[%clk 0:00:08.9]} 65... Rf2 {[%clk 0:00:42.2]} 66. Ng1
{[%clk 0:00:07.9]} 66... Ra2 {[%clk 0:00:39.9]} 67. Kf1 {[%clk 0:00:08.6]} 67...
Rb2 {[%clk 0:00:41.1]} 68. Nh3 {[%clk 0:00:09]} 68... Rc2 {[%clk 0:00:32.2]} 69.
Ng1 {[%clk 0:00:07.9]} 69... Rf2+ {[%clk 0:00:33.7]} 70. Ke1 {[%clk 0:00:09.2]}
70... Rg2 {[%clk 0:00:34.2]} 71. Kf1 {[%clk 0:00:06]} 71... Rg5 {[%clk
0:00:33.5]} 72. Nh3 {[%clk 0:00:05.4]} 72... Rg8 {[%clk 0:00:29.7]} 73. Ng1
{[%clk 0:00:06.1]} 73... Ra8 {[%clk 0:00:25.8]} 74. Nh3 {[%clk 0:00:04.9]} 74...
Ra2 {[%clk 0:00:25.8]} 75. Ng1 {[%clk 0:00:05.4]} 75... Rb2 {[%clk 0:00:27.7]}
76. Nh3 {[%clk 0:00:06.2]} 76... Kf3 {[%clk 0:00:29.6]} 77. Ng1+ {[%clk
0:00:06.9]} 77... Kg3 {[%clk 0:00:31.5]} 78. Ne2+ {[%clk 0:00:07.7]} 78... Kg4
{[%clk 0:00:33]} 79. Kf2 {[%clk 0:00:08.3]} 79... Ra2 {[%clk 0:00:34.9]} 80. Ke3
{[%clk 0:00:09.1]} 80... Kf5 {[%clk 0:00:36.6]} 81. Nd4+ {[%clk 0:00:09.4]}
81... Ke5 {[%clk 0:00:38.1]} 82. Nf3+ {[%clk 0:00:10.4]} 82... Kd5 {[%clk
0:00:39.7]} 83. Kf4 {[%clk 0:00:11.1]} 83... Rf2 {[%clk 0:00:40.4]} 84. Ke3
{[%clk 0:00:11.3]} 84... Ra2 {[%clk 0:00:41.2]} 85. Kf4 {[%clk 0:00:12.3]} 85...
Ra4+ {[%clk 0:00:42.6]} 86. Kf5 {[%clk 0:00:12.6]} 86... Rb4 {[%clk 0:00:42.7]}
87. Ng5 {[%clk 0:00:12.4]} 87... Rb1 {[%clk 0:00:43.6]} 88. Nf3 {[%clk
0:00:12.9]} 88... Rf1 {[%clk 0:00:44.8]} 89. Kf4 {[%clk 0:00:14.1]} 89... Rh1
{[%clk 0:00:44.6]} 90. Kf5 {[%clk 0:00:13]} 90... Rh8 {[%clk 0:00:46.5]} 91. Kf4
{[%clk 0:00:12.4]} 91... Rf8+ {[%clk 0:00:47.4]} 92. Ke3 {[%clk 0:00:13.7]}
92... Ke6 {[%clk 0:00:48.6]} 93. Ke4 {[%clk 0:00:14.3]} 93... Kf6 {[%clk
0:00:48.9]} 94. Nd4 {[%clk 0:00:14.8]} 94... Re8+ {[%clk 0:00:50.2]} 95. Kf4
{[%clk 0:00:15.1]} 95... Rd8 {[%clk 0:00:50.5]} 96. Nf3 {[%clk 0:00:15.9]} 96...
Rd1 {[%clk 0:00:50.6]} 97. Ke4 {[%clk 0:00:16.6]} 97... Rf1 {[%clk 0:00:51.6]}
98. Kf4 {[%clk 0:00:16.1]} 98... Ra1 {[%clk 0:00:53.1]} 99. Ke4 {[%clk
0:00:16.9]} 99... Ra4+ {[%clk 0:00:55]} 100. Nd4 {[%clk 0:00:17.9]} 100... Ra1
{[%clk 0:00:56.5]} 101. Kd5 {[%clk 0:00:18]} 101... Rb1 {[%clk 0:00:58.4]} 102.
Ke4 {[%clk 0:00:18.6]} 102... Rd1 {[%clk 0:00:59.9]} 103. Kd5 {[%clk 0:00:18.6]}
103... Kg5 {[%clk 0:01:01.8]} 104. Ke4 {[%clk 0:00:17.9]} 104... Re1+ {[%clk
0:01:03.3]} 105. Kd5 {[%clk 0:00:19.1]} 105... Kf4 {[%clk 0:01:05.2]} 106. Ne6+
{[%clk 0:00:19.1]} 106... Kf5 {[%clk 0:01:06.7]} 107. Nd4+ {[%clk 0:00:20.3]}
107... Kf6 {[%clk 0:01:08.4]} 108. Nf3 {[%clk 0:00:19.2]} 108... Rd1+ {[%clk
0:01:10.3]} 109. Nd4 {[%clk 0:00:20.2]} 109... Rd2 {[%clk 0:01:10.9]} 110. Ke4
{[%clk 0:00:20.9]} 110... Rd1 {[%clk 0:01:12.4]} 111. Kd5 {[%clk 0:00:21.5]}
111... Kg5 {[%clk 0:01:13.7]} 112. Ke4 {[%clk 0:00:22.4]} 112... Kg4 {[%clk
0:01:15.3]} 113. Ke5 {[%clk 0:00:20.6]} 113... Re1+ {[%clk 0:01:16.4]} 114. Kd5
{[%clk 0:00:21.4]} 114... Kf4 {[%clk 0:01:18.3]} 115. Ne6+ {[%clk 0:00:20.5]}
115... Ke3 {[%clk 0:01:19.1]} 116. Ke5 {[%clk 0:00:21]} 116... Ra1 {[%clk
0:01:20.7]} 117. Nc5 {[%clk 0:00:20.7]} 117... Ra5 {[%clk 0:01:22.6]} 118. Kd5
{[%clk 0:00:21.9]} 118... Ra8 {[%clk 0:01:23.3]} 119. Ne6 {[%clk 0:00:21.7]}
119... Re8 {[%clk 0:01:23.5]} 120. Nc5 {[%clk 0:00:22.3]} 1/2-1/2

[Event "*** Titled Tuesday Blitz"]
[Site "Chess.com"]
[Date "2018.12.04"]
[Round "4"]
[White "Vuk2000"]
[Black "Guenplen"]
[Result "0-1"]
[WhiteElo "2659"]
[BlackElo "2823"]
[TimeControl "180+2"]
[EndTime "13:54:41 PST"]
[Termination "Guenplen won by resignation"]

1. d4 {[%clk 0:03:00.4]} 1... d5 {[%clk 0:02:59.4]} 2. Bf4 {[%clk 0:03:00.1]}
2... c5 {[%clk 0:02:56.4]} 3. e3 {[%clk 0:02:59.4]} 3... Nc6 {[%clk 0:02:57.2]}
4. c3 {[%clk 0:02:59.2]} 4... Bf5 {[%clk 0:02:48.9]} 5. Bd3 {[%clk 0:02:38.8]}
5... Bxd3 {[%clk 0:02:44.6]} 6. Qxd3 {[%clk 0:02:40.7]} 6... e6 {[%clk
0:02:45.8]} 7. Nf3 {[%clk 0:02:39.9]} 7... Bd6 {[%clk 0:02:42.2]} 8. Bg3 {[%clk
0:02:15.8]} 8... Nge7 {[%clk 0:02:24.7]} 9. Nbd2 {[%clk 0:02:14.7]} 9... cxd4
{[%clk 0:02:18.9]} 10. exd4 {[%clk 0:02:14.3]} 10... Nf5 {[%clk 0:02:19.9]} 11.
Bxd6 {[%clk 0:01:59.3]} 11... Nxd6 {[%clk 0:02:21.8]} 12. O-O {[%clk 0:02:00.1]}
12... O-O {[%clk 0:02:22.7]} 13. Rfe1 {[%clk 0:02:00.6]} 13... a5 {[%clk
0:02:09.1]} 14. Ne5 {[%clk 0:01:48.9]} 14... Nxe5 {[%clk 0:02:08.8]} 15. dxe5
{[%clk 0:01:40]} 15... Nf5 {[%clk 0:02:08.7]} 16. Nf3 {[%clk 0:01:38.2]} 16...
Qb6 {[%clk 0:01:54.7]} 17. Re2 {[%clk 0:01:11.4]} 17... h6 {[%clk 0:01:51.8]}
18. Rc1 {[%clk 0:01:06.7]} 18... Rfc8 {[%clk 0:01:50.8]} 19. c4 {[%clk
0:00:52.3]} 19... dxc4 {[%clk 0:01:38.2]} 20. Rxc4 {[%clk 0:00:51.5]} 20... Rxc4
{[%clk 0:01:11.6]} 21. Qxc4 {[%clk 0:00:53.4]} 21... Rd8 {[%clk 0:01:13]} 22. g3
{[%clk 0:00:36.9]} 22... Rd1+ {[%clk 0:01:05.3]} 23. Kg2 {[%clk 0:00:36.4]}
23... Qd8 {[%clk 0:01:06]} 24. Qb5 {[%clk 0:00:32.4]} 24... Qd5 {[%clk
0:00:21.5]} 25. Qxd5 {[%clk 0:00:25.5]} 25... Rxd5 {[%clk 0:00:23.4]} 26. Rd2
{[%clk 0:00:26]} 26... Ne7 {[%clk 0:00:17.4]} 27. Rxd5 {[%clk 0:00:23.8]} 27...
Nxd5 {[%clk 0:00:19.3]} 28. a3 {[%clk 0:00:22.7]} 28... Nb6 {[%clk 0:00:18.7]}
29. Nd2 {[%clk 0:00:20.3]} 29... Kf8 {[%clk 0:00:11.9]} 30. Kf3 {[%clk
0:00:21.3]} 30... Ke7 {[%clk 0:00:13.4]} 31. Ke4 {[%clk 0:00:21.7]} 31... Kd7
{[%clk 0:00:14.8]} 32. Kd4 {[%clk 0:00:22.1]} 32... Kc6 {[%clk 0:00:14.2]} 33.
Ne4 {[%clk 0:00:19.7]} 33... Nd7 {[%clk 0:00:10.6]} 34. f4 {[%clk 0:00:16.5]}
34... f5 {[%clk 0:00:06.7]} 35. Nd6 {[%clk 0:00:15.9]} 35... g5 {[%clk
0:00:03.9]} 36. Ne8 {[%clk 0:00:15.7]} 36... gxf4 {[%clk 0:00:04]} 37. gxf4
{[%clk 0:00:16.6]} 37... Nf8 {[%clk 0:00:05.9]} 38. Nd6 {[%clk 0:00:12.8]} 38...
Ng6 {[%clk 0:00:05.6]} 39. Ke3 {[%clk 0:00:14]} 39... Ne7 {[%clk 0:00:06.8]} 40.
h4 {[%clk 0:00:06.7]} 40... h5 {[%clk 0:00:07.6]} 41. Ne8 {[%clk 0:00:07]} 41...
Ng6 {[%clk 0:00:07.6]} 42. Ng7 {[%clk 0:00:08.2]} 42... Kd5 {[%clk 0:00:09]} 43.
Nxh5 {[%clk 0:00:09.1]} 43... Nxh4 {[%clk 0:00:10.5]} 44. Nf6+ {[%clk
0:00:10.1]} 44... Kc4 {[%clk 0:00:11.9]} 45. Ne8 {[%clk 0:00:10.6]} 45... Kb3
{[%clk 0:00:10.3]} 46. Nc7 {[%clk 0:00:10.9]} 46... Kxb2 {[%clk 0:00:08.8]} 47.
Nxe6 {[%clk 0:00:11.5]} 47... Kxa3 {[%clk 0:00:10.2]} 48. Nd4 {[%clk 0:00:11.4]}
48... Kb2 {[%clk 0:00:08.4]} 49. e6 {[%clk 0:00:11.8]} 49... Ng6 {[%clk
0:00:09.6]} 50. Nxf5 {[%clk 0:00:12.1]} 50... a4 {[%clk 0:00:11.1]} 51. Nd6
{[%clk 0:00:12.7]} 51... Ne7 {[%clk 0:00:08.9]} 52. Ke4 {[%clk 0:00:10]} 52...
Kb3 {[%clk 0:00:07.8]} 53. Nb5 {[%clk 0:00:09.8]} 53... Kb4 {[%clk 0:00:09.1]}
54. Nd4 {[%clk 0:00:11]} 54... Kc4 {[%clk 0:00:09.6]} 55. f5 {[%clk 0:00:11.4]}
55... a3 {[%clk 0:00:10.5]} 56. f6 {[%clk 0:00:10.4]} 56... a2 {[%clk
0:00:11.7]} 57. Nc2 {[%clk 0:00:10.2]} 57... Kc3 {[%clk 0:00:13.2]} 58. Na1
{[%clk 0:00:10.8]} 58... Nc6 {[%clk 0:00:11]} 59. f7 {[%clk 0:00:07.4]} 59...
Kb2 {[%clk 0:00:08.5]} 60. f8=Q {[%clk 0:00:06.3]} 60... Kxa1 {[%clk 0:00:10.4]}
61. Qf1+ {[%clk 0:00:07.2]} 61... Kb2 {[%clk 0:00:11.5]} 62. Qb5+ {[%clk
0:00:08.6]} 62... Ka3 {[%clk 0:00:06.1]} 63. Qxb7 {[%clk 0:00:05.3]} 63... a1=Q
{[%clk 0:00:07.2]} 64. Qa6+ {[%clk 0:00:06.5]} 64... Kb2 {[%clk 0:00:07.3]} 65.
Qb5+ {[%clk 0:00:06.9]} 65... Ka3 {[%clk 0:00:06.8]} 66. Qc5+ {[%clk 0:00:07.9]}
66... Kb3 {[%clk 0:00:06.8]} 67. Qb5+ {[%clk 0:00:06.9]} 67... Nb4 {[%clk
0:00:07.7]} 68. Kf5 {[%clk 0:00:04.7]} 68... Qg7 {[%clk 0:00:05.7]} 69. Qe5
{[%clk 0:00:04.8]} 69... Qf8+ {[%clk 0:00:05.6]} 70. Qf6 {[%clk 0:00:05.6]}
70... Qc5+ {[%clk 0:00:06.5]} 71. Kg6 {[%clk 0:00:06.8]} 71... Nd5 {[%clk
0:00:07.5]} 72. Qf3+ {[%clk 0:00:04.3]} 72... Kc4 {[%clk 0:00:08.3]} 73. Qe4+
{[%clk 0:00:05.4]} 73... Kb5 {[%clk 0:00:08.6]} 74. Qe2+ {[%clk 0:00:04.6]}
74... Kb6 {[%clk 0:00:08.4]} 75. Qb2+ {[%clk 0:00:05.3]} 75... Ka7 {[%clk
0:00:08.1]} 76. Qa2+ {[%clk 0:00:06.3]} 76... Kb8 {[%clk 0:00:08.6]} 77. Qh2+
{[%clk 0:00:07.8]} 77... Kb7 {[%clk 0:00:08.7]} 78. Qh7+ {[%clk 0:00:08.7]}
78... Kb6 {[%clk 0:00:08.3]} 79. Qd7 {[%clk 0:00:09.5]} 79... Qg1+ {[%clk
0:00:06.1]} 80. Kf7 {[%clk 0:00:06.4]} 80... Qf2+ {[%clk 0:00:07.1]} 81. Kg7
{[%clk 0:00:07.4]} 81... Qf6+ {[%clk 0:00:08]} 82. Kh7 {[%clk 0:00:07.4]} 82...
Qf5+ {[%clk 0:00:09.4]} 83. Kh6 {[%clk 0:00:07.9]} 83... Qf4+ {[%clk 0:00:08.7]}
84. Kg7 {[%clk 0:00:08.5]} 84... Qg4+ {[%clk 0:00:09.5]} 85. Kf8 {[%clk
0:00:08.8]} 85... Qf5+ {[%clk 0:00:08.9]} 86. Kg7 {[%clk 0:00:08.8]} 86... Qf6+
{[%clk 0:00:09.2]} 87. Kh7 {[%clk 0:00:09.9]} 87... Kc5 {[%clk 0:00:10.1]} 88.
Qf7 {[%clk 0:00:07.7]} 88... Qg5 {[%clk 0:00:07.2]} 89. Qf8+ {[%clk 0:00:07.6]}
89... Kd4 {[%clk 0:00:06]} 90. Qf7 {[%clk 0:00:03.1]} 90... Nf6+ {[%clk
0:00:06.5]} 91. Kh8 {[%clk 0:00:03.6]} 91... Qh6+ {[%clk 0:00:07.1]} 0-1